Workbook

Sheet Sheet1
A1: Taylor Approximations to Parametric Functions
B3: This graphing utility produces the graphs
B4: of any parametric curve based on
C5: x = f(t) and y = g(t)
B6: and the curve for the Taylor polynomials based on
C7: x = F(t) and y = G(t)
B8: on any interval from t = a to t = b.
A10: Enter the first function in terms of t: x = f(t) = | F10: sin(t)
A12: Enter the second function in terms of t: y = g(t) = | F12: cos(t)
A14: Enter the Taylor approximation to f in terms of t:
E15: x = F(t) = | F15: t-t^3/6+t^5/120-t^7/5040
A17: Enter the Taylor approximation to g in terms of t:
E18: y = G(t) = | F18: 1-t^2/2+t^4/24-t^6/720
A21: Now enter the interval for t :
B22: Starting value t = a = | D22: -3.14
B23: Ending value t = b = | D23: 3.14 | I23: The graph of the parametric functions
J24: x = | K24: =F10 -> sin(t)
J25: y = | K25: =F12 -> cos(t)
I27: Now trace along the parametric curve:
I28: t = | J28: =D22+K28*Sheet2!B12 -> -1.874 | K28: 101
A29: Click each item below for suggestions and investigations | I29: x = | J29: =LOOKUP(J28,Sheet2!C3:C504,Sheet2!D3:D504) -> -0.954
B30: Item 1 | I30: y = | J30: =LOOKUP(J28,Sheet2!C3:C504,Sheet2!E3:E504) -> -0.299
B31: Item 2
B32: Item 3 | I32: Along the approximating Taylor functions:
I33: x = | J33: =LOOKUP($J28,Sheet2!C3:C503,Sheet2!F3:F503) -> -0.954
I34: y = | J34: =LOOKUP(J28,Sheet2!C3:C503,Sheet2!G3:G503) -> -0.302
A36: To access/download all the DIGMath Apps for Calculus
A37: Click this link: | C37: DIGMath for Calculus
A39: Created by: Sheldon P. Gordon
A40: Farmingdale State College
A41: Development of this module was supported by the
A42: NSF's Division of Undergraduate Education
A43: under grants DUE-0310123 and DUE-0442160.

Sheet Sheet2
C1: t | D1: x = f(t) | E1: y = g(t) | F1: x = F(t) | G1: y =G(t) | J1: Tracing point
C3: =a -> -3.14 | D3: =SIN(t) -> -0.001592652916 | E3: =COS(t) -> -0.9999987317 | F3: =t-t^3/6+t^5/120-t^7/5040 -> 0.073292015 | G3: =1-t^2/2+t^4/24-t^6/720 -> -1.210518378 | J3: 0 | K3: 0
C4: =C3+B$12 -> -3.12746507 | D4: -0.01412711378 | E4: -0.9999002073 | F4: 0.0581593689 | G4: -1.203960789 | J4: =LOOKUP(0,C3:C503,D3:D503) -> -0.006267424038 | K4: =LOOKUP(0,C3:C503,E3:E503) -> 0.9999803595
C5: =C4+B$12 -> -3.11493014 | D5: -0.02665935496 | E5: -0.9996445762 | F5: 0.04310882341 | G5: -1.19741824
C6: -3.10239521 | D6: -0.03918740736 | E6: -0.9992318785 | F6: 0.02814021412 | G6: -1.190886899
C7: -3.089860279 | D7: -0.05170930254 | E7: -0.9986621791 | F7: 0.01325342406 | G7: -1.184363026
C8: -3.077325349 | D8: -0.06422307303 | E8: -0.9979355675 | F8: -0.001551617428 | G8: -1.177842977
C9: -3.064790419 | D9: -0.07672675263 | E9: -0.9970521578 | F9: -0.01627493593 | G9: -1.1713232
C10: -3.052255489 | D10: -0.08921837674 | E10: -0.9960120889 | F10: -0.03091651307 | G10: -1.164800237
C11: -3.039720559 | D11: -0.1016959826 | E11: -0.9948155242 | F11: -0.04547628772 | G11: -1.158270718
A12: delta t = | B12: =(Sheet1!D23-Sheet1!D22)/501 -> 0.01253493014 | C12: -3.027185629 | D12: -0.1141576098 | E12: -0.9934626516 | F12: -0.05995415705 | G12: -1.151731367
C13: -3.014650699 | D13: -0.1266013003 | E13: -0.9919536838 | F13: -0.07434997775 | G13: -1.145178994
C14: -3.002115768 | D14: -0.1390250989 | E14: -0.9902888578 | F14: -0.08866356707 | G14: -1.138610501
C15: -2.989580838 | D15: -0.1514270535 | E15: -0.9884684352 | F15: -0.102894704 | G15: -1.132022874
C16: -2.977045908 | D16: -0.1638052155 | E16: -0.9864927021 | F16: -0.1170431302 | G16: -1.125413188
C17: -2.964510978 | D17: -0.17615764 | E17: -0.9843619689 | F17: -0.1311085513 | G17: -1.118778602
C18: -2.951976048 | D18: -0.1884823863 | E18: -0.9820765704 | F18: -0.1450906378 | G18: -1.112116361
C19: -2.939441118 | D19: -0.2007775177 | E19: -0.9796368656 | F19: -0.1589890264 | G19: -1.105423794
C20: -2.926906188 | D20: -0.2130411025 | E20: -0.9770432379 | F20: -0.1728033204 | G20: -1.098698311
C21: -2.914371257 | D21: -0.2252712137 | E21: -0.9742960948 | F21: -0.1865330915 | G21: -1.091937405
C22: -2.901836327 | D22: -0.2374659298 | E22: -0.9713958679 | F22: -0.2001778804 | G22: -1.085138651
C23: -2.889301397 | D23: -0.2496233347 | E23: -0.968343013 | F23: -0.2137371979 | G23: -1.078299703
C24: -2.876766467 | D24: -0.2617415181 | E24: -0.9651380097 | F24: -0.2272105259 | G24: -1.071418295
C25: -2.864231537 | D25: -0.2738185761 | E25: -0.9617813615 | F25: -0.2405973183 | G25: -1.064492238
C26: -2.851696607 | D26: -0.285852611 | E26: -0.958273596 | F26: -0.2538970022 | G26: -1.057519423
C27: -2.839161677 | D27: -0.2978417321 | E27: -0.9546152642 | F27: -0.2671089786 | G27: -1.050497815
C28: -2.826626747 | D28: -0.3097840556 | E28: -0.9508069409 | F28: -0.2802326235 | G28: -1.043425456
C29: -2.814091816 | D29: -0.3216777051 | E29: -0.9468492246 | F29: -0.293267289 | G29: -1.036300462
C30: -2.801556886 | D30: -0.3335208118 | E30: -0.942742737 | F30: -0.3062123038 | G30: -1.029121024
C31: -2.789021956 | D31: -0.3453115149 | E31: -0.9384881234 | F31: -0.3190669745 | G31: -1.021885405
C32: -2.776487026 | D32: -0.3570479618 | E32: -0.9340860522 | F32: -0.3318305864 | G32: -1.014591941
C33: -2.763952096 | D33: -0.3687283084 | E33: -0.9295372153 | F33: -0.3445024044 | G33: -1.00723904
C34: -2.751417166 | D34: -0.3803507196 | E34: -0.9248423271 | F34: -0.3570816737 | G34: -0.9998251785
C35: -2.738882236 | D35: -0.3919133692 | E35: -0.9200021256 | F35: -0.3695676211 | G35: -0.9923489039
C36: -2.726347305 | D36: -0.4034144404 | E36: -0.915017371 | F36: -0.3819594555 | G36: -0.9848088321
C37: -2.713812375 | D37: -0.4148521261 | E37: -0.9098888468 | F37: -0.3942563689 | G37: -0.977203647
C38: -2.701277445 | D38: -0.4262246293 | E38: -0.9046173585 | F38: -0.4064575371 | G38: -0.9695320995
C39: -2.688742515 | D39: -0.437530163 | E39: -0.8992037347 | F39: -0.4185621209 | G39: -0.9617930067
C40: -2.676207585 | D40: -0.448766951 | E40: -0.8936488257 | F40: -0.4305692665 | G40: -0.953985251
C41: -2.663672655 | D41: -0.4599332275 | E41: -0.8879535045 | F41: -0.4424781066 | G41: -0.9461077796
C42: -2.651137725 | D42: -0.4710272383 | E42: -0.8821186659 | F42: -0.4542877609 | G42: -0.9381596033
C43: -2.638602794 | D43: -0.4820472401 | E43: -0.8761452267 | F43: -0.4659973374 | G43: -0.9301397956
C44: -2.626067864 | D44: -0.4929915015 | E44: -0.8700341254 | F44: -0.4776059327 | G44: -0.9220474924
C45: -2.613532934 | D45: -0.5038583029 | E45: -0.8637863223 | F45: -0.489112633 | G45: -0.9138818906
C46: -2.600998004 | D46: -0.5146459368 | E46: -0.857402799 | F46: -0.5005165147 | G46: -0.9056422477
C47: -2.588463074 | D47: -0.5253527084 | E47: -0.8508845584 | F47: -0.5118166453 | G47: -0.8973278807
C48: -2.575928144 | D48: -0.5359769352 | E48: -0.8442326249 | F48: -0.5230120844 | G48: -0.8889381656
C49: -2.563393214 | D49: -0.5465169481 | E49: -0.8374480434 | F49: -0.5341018838 | G49: -0.8804725363
C50: -2.550858283 | D50: -0.5569710909 | E50: -0.8305318801 | F50: -0.5450850886 | G50: -0.8719304839
C51: -2.538323353 | D51: -0.567337721 | E51: -0.8234852217 | F51: -0.5559607379 | G51: -0.8633115559
C52: -2.525788423 | D52: -0.5776152097 | E52: -0.8163091752 | F52: -0.5667278658 | G52: -0.8546153555
C53: -2.513253493 | D53: -0.5878019421 | E53: -0.8090048683 | F53: -0.5773855012 | G53: -0.8458415409
C54: -2.500718563 | D54: -0.5978963176 | E54: -0.8015734485 | F54: -0.5879326695 | G54: -0.836989824
C55: -2.488183633 | D55: -0.6078967502 | E55: -0.7940160837 | F55: -0.5983683926 | G55: -0.8280599703
C56: -2.475648703 | D56: -0.6178016686 | E56: -0.786333961 | F56: -0.60869169 | G56: -0.8190517976
C57: -2.463113772 | D57: -0.6276095165 | E57: -0.7785282877 | F57: -0.618901579 | G57: -0.8099651756
C58: -2.450578842 | D58: -0.6373187529 | E58: -0.7706002902 | F58: -0.6289970757 | G58: -0.8008000249
C59: -2.438043912 | D59: -0.6469278522 | E59: -0.7625512141 | F59: -0.6389771955 | G59: -0.7915563163
C60: -2.425508982 | D60: -0.6564353046 | E60: -0.754382324 | F60: -0.6488409538 | G60: -0.7822340699
C61: -2.412974052 | D61: -0.6658396164 | E61: -0.7460949036 | F61: -0.6585873664 | G61: -0.7728333548
C62: -2.400439122 | D62: -0.6751393098 | E62: -0.737690255 | F62: -0.6682154506 | G62: -0.7633542878
C63: -2.387904192 | D63: -0.6843329237 | E63: -0.7291696987 | F63: -0.6777242251 | G63: -0.753797033
C64: -2.375369261 | D64: -0.6934190136 | E64: -0.7205345735 | F64: -0.6871127111 | G64: -0.7441618007
C65: -2.362834331 | D65: -0.7023961518 | E65: -0.7117862362 | F65: -0.6963799327 | G65: -0.7344488473
C66: -2.350299401 | D66: -0.7112629278 | E66: -0.7029260612 | F66: -0.7055249176 | G66: -0.7246584738
C67: -2.337764471 | D67: =SIN(t) -> -0.7200179484 | E67: =COS(t) -> -0.6939554409 | F67: =t-t^3/6+t^5/120-t^7/5040 -> -0.7145466973 | G67: =1-t^2/2+t^4/24-t^6/720 -> -0.7147910256
C68: -2.325229541 | D68: -0.7286598381 | E68: -0.6848757846 | F68: -0.7234443083 | G68: -0.7048468917
C69: =C68+B$12 -> -2.312694611 | D69: -0.737187239 | E69: -0.6756885189 | F69: -0.7322167918 | G69: -0.6948265035
C70: -2.300159681 | D70: -0.7455988113 | E70: -0.6663950875 | F70: -0.740863195 | G70: -0.684730335
C71: -2.28762475 | D71: -0.7538932333 | E71: -0.6569969504 | F71: -0.7493825712 | G71: -0.674558901
C72: -2.27508982 | D72: -0.7620692017 | E72: -0.6474955844 | F72: -0.7577739802 | G72: -0.6643127573
C73: -2.26255489 | D73: -0.770125432 | E73: -0.6378924823 | F73: -0.7660364895 | G73: -0.6539924994
C74: -2.25001996 | D74: -0.7780606583 | E74: -0.628189153 | F74: -0.7741691738 | G74: -0.6435987621
C75: -2.23748503 | D75: -0.7858736339 | E75: -0.6183871211 | F75: -0.7821711163 | G75: -0.6331322187
C76: -2.2249501 | D76: -0.7935631311 | E76: -0.6084879267 | F76: -0.7900414088 | G76: -0.6225935802
C77: -2.21241517 | D77: -0.8011279417 | E77: -0.5984931253 | F77: -0.7977791523 | G77: -0.611983595
C78: -2.19988024 | D78: -0.8085668772 | E78: -0.5884042871 | F78: -0.8053834572 | G78: -0.6013030475
C79: -2.187345309 | D79: -0.8158787687 | E79: -0.5782229975 | F79: -0.8128534442 | G79: -0.5905527581
C80: -2.174810379 | D80: -0.8230624673 | E80: -0.567950856 | F80: -0.8201882445 | G80: -0.5797335823
C81: -2.162275449 | D81: -0.8301168444 | E81: -0.5575894768 | F81: -0.827387 | G81: -0.5688464098
C82: -2.149740519 | D82: -0.8370407916 | E82: -0.5471404877 | F82: -0.8344488643 | G82: -0.557892164
C83: -2.137205589 | D83: -0.8438332208 | E83: -0.5366055306 | F83: -0.8413730024 | G83: -0.5468718016
C84: -2.124670659 | D84: -0.8504930649 | E84: -0.5259862607 | F84: -0.8481585918 | G84: -0.5357863113
C85: -2.112135729 | D85: -0.8570192776 | E85: -0.5152843466 | F85: -0.8548048225 | G85: -0.5246367137
C86: -2.099600798 | D86: -0.8634108332 | E86: -0.5045014698 | F86: -0.8613108974 | G86: -0.5134240604
C87: -2.087065868 | D87: -0.8696667277 | E87: -0.4936393245 | F87: -0.867676033 | G87: -0.5021494334
C88: -2.074530938 | D88: -0.875785978 | E88: -0.4826996174 | F88: -0.8738994593 | G88: -0.4908139443
C89: -2.061996008 | D89: -0.8817676228 | E89: -0.4716840674 | F89: -0.8799804205 | G89: -0.4794187339
C90: -2.049461078 | D90: -0.887610722 | E90: -0.4605944052 | F90: -0.8859181753 | G90: -0.4679649716
C91: -2.036926148 | D91: -0.8933143578 | E91: -0.4494323733 | F91: -0.8917119973 | G91: -0.4564538542
C92: -2.024391218 | D92: -0.8988776338 | E92: -0.4381997255 | F92: -0.8973611751 | G92: -0.4448866059
C93: -2.011856287 | D93: -0.904299676 | E93: -0.4268982268 | F93: -0.902865013 | G93: -0.4332644775
C94: -1.999321357 | D94: -0.9095796324 | E94: -0.4155296527 | F94: -0.908222831 | G94: -0.4215887456
C95: -1.986786427 | D95: -0.9147166735 | E95: -0.4040957896 | F95: -0.9134339654 | G95: -0.4098607121
C96: -1.974251497 | D96: -0.9197099921 | E96: -0.392598434 | F96: -0.9184977688 | G96: -0.3980817034
C97: -1.961716567 | D97: -0.9245588037 | E97: -0.3810393924 | F97: -0.9234136107 | G97: -0.3862530702
C98: -1.949181637 | D98: -0.9292623463 | E98: -0.369420481 | F98: -0.9281808777 | G98: -0.3743761865
C99: -1.936646707 | D99: -0.933819881 | E99: -0.3577435253 | F99: -0.9327989737 | G99: -0.3624524491
C100: -1.924111776 | D100: -0.9382306916 | E100: -0.3460103601 | F100: -0.9372673201 | G100: -0.350483277
C101: -1.911576846 | D101: -0.9424940852 | E101: -0.3342228289 | F101: -0.9415853566 | G101: -0.3384701108
C102: -1.899041916 | D102: -0.9466093918 | E102: -0.3223827838 | F102: -0.9457525408 | G102: -0.3264144123
C103: -1.886506986 | D103: -0.9505759649 | E103: -0.3104920852 | F103: -0.9497683488 | G103: -0.3143176634
C104: -1.873972056 | D104: -0.9543931812 | E104: -0.2985526012 | F104: -0.9536322755 | G104: -0.3021813662
C105: -1.861437126 | D105: -0.9580604409 | E105: -0.286566208 | F105: -0.9573438345 | G105: -0.2900070416
C106: -1.848902196 | D106: -0.9615771678 | E106: -0.2745347888 | F106: -0.960902559 | G106: -0.2777962296
C107: -1.836367265 | D107: -0.9649428095 | E107: -0.2624602341 | F107: -0.9643080013 | G107: -0.2655504881
C108: -1.823832335 | D108: -0.9681568369 | E108: -0.2503444409 | F108: -0.9675597333 | G108: -0.2532713924
C109: -1.811297405 | D109: -0.9712187453 | E109: -0.238189313 | F109: -0.970657347 | G109: -0.2409605348
C110: -1.798762475 | D110: -0.9741280534 | E110: -0.2259967603 | F110: -0.9736004542 | G110: -0.2286195242
C111: -1.786227545 | D111: -0.9768843041 | E111: -0.2137686984 | F111: -0.9763886873 | G111: -0.2162499849
C112: -1.773692615 | D112: -0.9794870644 | E112: -0.2015070486 | F112: -0.9790216988 | G112: -0.2038535569
C113: -1.761157685 | D113: -0.9819359254 | E113: -0.1892137376 | F113: -0.981499162 | G113: -0.1914318945
C114: -1.748622754 | D114: -0.9842305022 | E114: -0.1768906968 | F114: -0.9838207712 | G114: -0.1789866664
C115: -1.736087824 | D115: -0.9863704343 | E115: -0.1645398625 | F115: -0.9859862413 | G115: -0.1665195549
C116: -1.723552894 | D116: -0.9883553855 | E116: -0.1521631754 | F116: -0.9879953088 | G116: -0.1540322551
C117: -1.711017964 | D117: -0.9901850439 | E117: -0.13976258 | F117: -0.9898477312 | G117: -0.1415264749
C118: -1.698483034 | D118: -0.9918591221 | E118: -0.1273400248 | F118: -0.9915432877 | G118: -0.1290039341
C119: -1.685948104 | D119: -0.993377357 | E119: -0.1148974615 | F119: -0.993081779 | G119: -0.1164663639
C120: -1.673413174 | D120: -0.99473951 | E120: -0.1024368454 | F120: -0.9944630277 | G120: -0.1039155065
C121: -1.660878244 | D121: -0.9959453671 | E121: -0.08996013408 | F121: -0.995686878 | G121: -0.09135311432
C122: -1.648343313 | D122: -0.9969947389 | E122: -0.07746928802 | F122: -0.9967531966 | G122: -0.07878094991
C123: -1.635808383 | D123: -0.9978874605 | E123: -0.06496626981 | F123: -0.997661872 | G123: -0.06620078503
C124: -1.623273453 | D124: -0.9986233916 | E124: -0.05245304394 | F124: -0.9984128151 | G124: -0.05361440033
C125: -1.610738523 | D125: -0.9992024165 | E125: -0.03993157652 | F125: -0.999005959 | G125: -0.0410235848
C126: -1.598203593 | D126: -0.9996244444 | E126: -0.02740383495 | F126: -0.9994412596 | G126: -0.02843013527
C127: -1.585668663 | D127: -0.9998894089 | E127: -0.01487178763 | F127: -0.9997186951 | G127: -0.01583585592
C128: -1.573133733 | D128: -0.9999972683 | E128: -0.002337403612 | F128: -0.9998382664 | G128: -0.003242557744
C129: -1.560598802 | D129: -0.9999480057 | E129: 0.01019734766 | F129: -0.9997999972 | G129: 0.009347941887
C130: -1.548063872 | D130: -0.9997416289 | E130: 0.0227304967 | F130: -0.9996039341 | G130: 0.02193381975
C131: -1.535528942 | D131: =SIN(t) -> -0.9993781702 | E131: =COS(t) -> 0.03526007427 | F131: =t-t^3/6+t^5/120-t^7/5040 -> -0.9992501464 | G131: =1-t^2/2+t^4/24-t^6/720 -> 0.03451324725
C132: -1.522994012 | D132: -0.9988576869 | E132: 0.0477841117 | F132: -0.9987387264 | G132: 0.04708439089
C133: =C132+B$12 -> -1.510459082 | D133: -0.9981802606 | E133: 0.06030064116 | F133: -0.9980697896 | G133: 0.05964541276
C134: -1.497924152 | D134: -0.9973459978 | E134: 0.07280769605 | F134: -0.9972434743 | G134: 0.072194471
C135: -1.485389222 | D135: -0.9963550296 | E135: 0.08530331121 | F135: -0.996259942 | G135: 0.08472972029
C136: -1.472854291 | D136: -0.9952075117 | E136: 0.09778552331 | F136: -0.9951193774 | G136: 0.09724931227
C137: -1.460319361 | D137: -0.9939036244 | E137: 0.1102523711 | F137: -0.9938219885 | G137: 0.1097513961
C138: -1.447784431 | D138: -0.9924435726 | E138: 0.1227018958 | F138: -0.9923680062 | G138: 0.1222341187
C139: -1.435249501 | D139: -0.9908275856 | E139: 0.1351321413 | F139: -0.9907576848 | G139: 0.1346956255
C140: -1.422714571 | D140: -0.9890559174 | E140: 0.1475411544 | F140: -0.9889913021 | G140: 0.1471340608
C141: -1.410179641 | D141: -0.9871288463 | E141: 0.1599269856 | F141: -0.9870691587 | G141: 0.1595475679
C142: -1.397644711 | D142: -0.9850466752 | E142: 0.1722876886 | F142: -0.9849915787 | G142: 0.17193429
C143: -1.38510978 | D143: -0.9828097312 | E143: 0.1846213214 | F143: -0.9827589097 | G143: 0.1842923705
C144: -1.37257485 | D144: -0.9804183657 | E144: 0.1969259461 | F144: -0.9803715222 | G144: 0.1966199531
C145: -1.36003992 | D145: -0.9778729545 | E145: 0.2091996292 | F145: -0.9778298101 | G145: 0.2089151829
C146: -1.34750499 | D146: -0.9751738975 | E146: 0.2214404424 | F146: -0.9751341907 | G146: 0.221176206
C147: -1.33497006 | D147: -0.9723216189 | E147: 0.2336464624 | F147: -0.9722851042 | G147: 0.2334011706
C148: -1.32243513 | D148: -0.9693165668 | E148: 0.2458157712 | F148: -0.9692830143 | G148: 0.2455882272
C149: -1.3099002 | D149: -0.9661592133 | E149: 0.2579464569 | F149: -0.9661284078 | G149: 0.257735529
C150: -1.297365269 | D150: -0.9628500545 | E150: 0.2700366134 | F150: -0.9628217944 | G150: 0.269841232
C151: -1.284830339 | D151: -0.9593896104 | E151: 0.2820843411 | F151: -0.9593637073 | G151: 0.2819034961
C152: -1.272295409 | D152: -0.9557784247 | E152: 0.294087747 | F152: -0.9557547024 | G152: 0.2939204849
C153: -1.259760479 | D153: -0.9520170647 | E153: 0.3060449452 | F153: -0.9519953586 | G153: 0.3058903664
C154: -1.247225549 | D154: -0.9481061216 | E154: 0.3179540568 | F154: -0.9480862781 | G154: 0.3178113132
C155: -1.234690619 | D155: -0.9440462097 | E155: 0.3298132108 | F155: -0.9440280855 | G155: 0.3296815031
C156: -1.222155689 | D156: -0.939837967 | E156: 0.3416205436 | F156: -0.9398214285 | G156: 0.3414991193
C157: -1.209620758 | D157: -0.9354820547 | E157: 0.3533742003 | F157: -0.9354669775 | G157: 0.3532623509
C158: -1.197085828 | D158: -0.9309791571 | E158: 0.3650723339 | F158: -0.9309654255 | G158: 0.3649693932
C159: -1.184550898 | D159: -0.9263299819 | E159: 0.3767131065 | F159: -0.9263174881 | G159: 0.3766184484
C160: -1.172015968 | D160: -0.9215352595 | E160: 0.388294689 | F160: -0.9215239034 | G160: 0.3882077253
C161: -1.159481038 | D161: -0.9165957433 | E161: 0.3998152617 | F161: -0.9165854319 | G161: 0.3997354403
C162: -1.146946108 | D162: -0.9115122093 | E162: 0.4112730144 | F162: -0.9115028564 | G162: 0.4111998175
C163: -1.134411178 | D163: -0.9062854562 | E163: 0.422666147 | F163: -0.906276982 | G163: 0.4225990891
C164: -1.121876248 | D164: -0.9009163055 | E164: 0.4339928692 | F164: -0.9009086357 | G164: 0.4339314957
C165: -1.109341317 | D165: -0.8954056006 | E165: 0.4452514014 | F165: -0.8953986667 | G165: 0.4451952866
C166: -1.096806387 | D166: -0.8897542074 | E166: 0.4564399746 | F166: -0.889747946 | G166: 0.4563887206
C167: -1.084271457 | D167: -0.8839630138 | E167: 0.4675568309 | F167: -0.8839573665 | G167: 0.4675100656
C168: -1.071736527 | D168: -0.8780329299 | E168: 0.4786002236 | F168: -0.8780278424 | G168: 0.4785575996
C169: -1.059201597 | D169: -0.8719648873 | E169: 0.4895684174 | F169: -0.8719603099 | G169: 0.4895296106
C170: -1.046666667 | D170: -0.8657598395 | E170: 0.500459689 | F170: -0.8657557261 | G170: 0.5004243974
C171: -1.034131737 | D171: -0.8594187614 | E171: 0.5112723272 | F171: -0.8594150699 | G171: 0.5112402692
C172: -1.021596806 | D172: -0.8529426493 | E172: 0.5220046331 | F172: -0.8529393408 | G172: 0.5219755466
C173: -1.009061876 | D173: -0.8463325209 | E173: 0.5326549203 | F173: -0.8463295596 | G173: 0.5326285619
C174: -0.9965269461 | D174: -0.8395894146 | E174: 0.5432215155 | F174: -0.8395867678 | G174: 0.5431976588
C175: -0.983992016 | D175: -0.83271439 | E175: 0.5537027584 | F175: -0.8327120277 | G175: 0.5536811934
C176: -0.9714570858 | D176: -0.8257085273 | E176: 0.5640970022 | F176: -0.8257064219 | G176: 0.5640775341
C177: -0.9589221557 | D177: -0.8185729273 | E177: 0.5744026137 | F177: -0.8185710538 | G177: 0.5743850621
C178: -0.9463872255 | D178: -0.8113087112 | E178: 0.5846179737 | F178: -0.8113070465 | G178: 0.5846021716
C179: -0.9338522954 | D179: -0.8039170202 | E179: 0.5947414771 | F179: -0.8039155435 | G179: 0.5947272701
C180: -0.9213173653 | D180: -0.7963990159 | E180: 0.6047715333 | F180: -0.796397708 | G180: 0.6047587788
C181: -0.9087824351 | D181: -0.7887558794 | E181: 0.6147065663 | F181: -0.788754723 | G181: 0.6146951328
C182: -0.896247505 | D182: -0.7809888117 | E182: 0.6245450152 | F182: -0.7809877909 | G182: 0.6245347815
C183: -0.8837125749 | D183: -0.7730990332 | E183: 0.634285334 | F183: -0.7730981337 | G183: 0.6342761886
C184: -0.8711776447 | D184: -0.7650877834 | E184: 0.6439259924 | F184: -0.7650869924 | G184: 0.6439178326
C185: -0.8586427146 | D185: -0.7569563212 | E185: 0.6534654755 | F185: -0.7569556268 | G185: 0.6534582073
C186: -0.8461077844 | D186: -0.7487059243 | E186: 0.6629022846 | F186: -0.7487053158 | G186: 0.6628958216
C187: -0.8335728543 | D187: -0.7403378888 | E187: 0.6722349369 | F187: -0.7403373567 | G187: 0.6722292
C188: -0.8210379242 | D188: -0.7318535296 | E188: 0.681461966 | F188: -0.7318530653 | G188: 0.6814568828
C189: -0.808502994 | D189: -0.7232541799 | E189: 0.6905819222 | F189: -0.7232537755 | G189: 0.6905774266
C190: -0.7959680639 | D190: -0.7145411907 | E190: 0.6995933724 | F190: -0.7145408393 | G190: 0.6995894043
C191: -0.7834331337 | D191: -0.7057159311 | E191: 0.7084949009 | F191: -0.7057156264 | G191: 0.7084914052
C192: -0.7708982036 | D192: -0.6967797877 | E192: 0.7172851089 | F192: -0.6967795241 | G192: 0.7172820357
C193: -0.7583632735 | D193: -0.6877341645 | E193: 0.7259626154 | F193: -0.6877339371 | G193: 0.7259599193
C194: -0.7458283433 | D194: -0.6785804829 | E194: 0.7345260568 | F194: -0.6785802871 | G194: 0.7345236969
C195: -0.7332934132 | D195: =SIN(t) -> -0.6693201811 | E195: =COS(t) -> 0.7429740878 | F195: =t-t^3/6+t^5/120-t^7/5040 -> -0.669320013 | G195: =1-t^2/2+t^4/24-t^6/720 -> 0.7429720266
C196: -0.720758483 | D196: -0.6599547141 | E196: 0.7513053808 | F196: -0.6599545702 | G196: 0.7513035849
C197: =C196+B$12 -> -0.7082235529 | D197: -0.6504855535 | E197: 0.759518627 | F197: -0.6504854305 | G197: 0.7595170659
C198: -0.6956886228 | D198: -0.6409141869 | E198: 0.7676125357 | F198: -0.6409140822 | G198: 0.7676111822
C199: -0.6831536926 | D199: -0.6312421184 | E199: 0.7755858353 | F199: -0.6312420294 | G199: 0.7755846648
C200: -0.6706187625 | D200: -0.6214708676 | E200: 0.783437273 | F200: -0.6214707923 | G200: 0.7834362635
C201: -0.6580838323 | D201: -0.6116019697 | E201: 0.7911656152 | F201: -0.6116019062 | G201: 0.7911647469
... 304 more rows

Sheet Sheet3
